Cogmind - Beta 14 @@@ ROGUE MODE // 2024.08.17 @ 16:07:26 Player: Sgt. SmokeWeed Result: Destroyed by Y-45 Defender with Heavy Assault Rifle Performance ------------- Evolutions (1) 500 Regions Visited (3) 600 Robots Destroyed (36) 180 Value Destroyed (1081) 1081 Prototype IDs (1) 20 Alien Tech Used (0) 0 Bonus (144) 144 TOTAL SCORE: 2525 Bonus ------- High Alert Combat Kills 119 Follower Combat Kills 25 Cogmind --------- Core Integrity 0/400 Matter 267/300 Energy 260/280 System Corruption 0% Temperature Cool (9) Movement Core (250) Ox4 Location -9/Materials Parts ------- > --- POWER (1) -------- Cooled Ion Engine > --- PROPULSION (2) --- (None) > --- UTILITY (4) ------ Heat Sink > --- WEAPON (2) ------- Beam Rifle Beam Rifle > --- INVENTORY (5) ---- (None) Peak State ------------ > --- POWER ------------ Cooled Ion Engine > --- PROPULSION ------- Light Treads Light Treads > --- UTILITY ---------- (None) > --- WEAPON ----------- Beam Rifle Rocket Launcher > --- INVENTORY -------- Light Treads Light Treads Beam Rifle Beam Rifle Beam Rifle [Rating: 9] Favorites ----------- Power Ion Engine Engine Ion Engine Propulsion Light Treads Treads Light Treads Utility Heat Sink Device Heat Sink Weapon Beam Rifle Energy Gun Beam Rifle Ballistic Gun Light Assault Rifle Launcher Rocket Launcher Build | -11 -10 -10 -9 ------- Run | Yrd Mat Min Mat Slots Evolved 2 | . . . 2 Power . | . . . . Propulsion . | . . . . Utility 2 | . . . 2 Weapon . | . . . . Parts Attached 22 | 5 4 . 13 Power 5 | 1 . . 4 Engine 5 | 1 . . 4 Core . | . . . . Reactor . | . . . . Propulsion 8 | 2 2 . 4 Treads 8 | 2 2 . 4 Leg . | . . . . Wheel . | . . . . Hover . | . . . . Flight . | . . . . Utility 1 | . . . 1 Device 1 | . . . 1 Storage . | . . . . Processor . | . . . . Hackware . | . . . . Protection . | . . . . Artifact . | . . . . Weapon 8 | 2 2 . 4 Energy Gun 6 | 1 1 . 4 Energy Cannon . | . . . . Ballistic Gun 1 | 1 . . . Ballistic Cannon . | . . . . Launcher 1 | . 1 . . Special Weapon . | . . . . Impact Weapon . | . . . . Slashing Weapon . | . . . . Piercing Weapon . | . . . . Special Melee Weapon . | . . . . Unidentified Prototypes 1 | . . . 1 Parts Lost 3 | . . . 3 Power . | . . . . Propulsion 1 | . . . 1 Utility . | . . . . Weapon 2 | . . . 2 Highest Loss Streak 2 | . . . 2 To Critical Strikes . | . . . . Average Slot Usage (%) 60 | . 71 71 54 Engine 12 | . 14 14 11 Treads 23 | . 28 28 21 Energy Gun 15 | . 14 14 16 Launcher 8 | . 10 14 5 Peak Build Rating 9 | 5 7 7 9 Average Rating 7 | 4 6 7 8 On Entrance 4 | . 5 7 7 Naked Turns . | . . . . Heaviest Build 15 | 7 12 12 15 Greatest Support 40 | 40 40 40 40 Greatest Overweight (x) 4 | . . . 4 Average Overweight (x) . | . . . . Largest Inventory Capacity 5 | 5 5 5 5 Average Capacity 5 | 5 5 5 5 Most Carried 5 | . 5 5 5 Average Carried 3 | . 2 5 4 Final Capacity 5 | 5 5 5 5 Final Carried 5 | . 5 5 . Class Distribution -------------------- 100% | Mutant Dominant Class ---------------- Mutant | -10/Materials Mutant | -10/Mines Mutant | -9/Materials Resources | -11 -10 -10 -9 ----------- Run | Yrd Mat Min Mat Matter Collected 581 | 233 38 76 234 Remotely . | . . . . Salvage Created 1126 | . 144 132 850 Parts 57 | . 5 9 43 Haulers Intercepted 3 | . 1 . 2 Recyclers Shooed . | . . . . Parts Field Recycled . | . . . . Retrieved Matter . | . . . . Parts Self-Destructed . | . . . . Prevented . | . . . . Kills | -11 -10 -10 -9 ------- Run | Yrd Mat Min Mat Combat Hostiles Destroyed 26 | . 3 5 18 Guns 13 | . 2 2 9 AOE 12 | . 1 3 8 Classes Destroyed 8 | . 3 1 4 Worker 3 | . 2 1 . Tunneler 1 | . . . 1 Hauler 3 | . 1 . 2 Recycler 1 | . . . 1 Watcher 2 | . . . 2 Swarmer 1 | . . 1 . Grunt 20 | . 3 4 13 Sentry 5 | . . . 5 Best Kill Streak 8 | . 6 8 5 Combat Bots Only 5 | . 3 5 5 Max Kills in Single Turn 3 | . 3 2 2 Gunslinging . | . . . . Exploded 2 | . 1 1 2 Melee . | . . . . Uniques/NPCs Destroyed . | . . . . Combat | -11 -10 -10 -9 -------- Run | Yrd Mat Min Mat Hostile Shots Fired 115 | . 8 14 93 Missed 35 | . 2 4 29 Damage Taken 1189 | . 69 131 989 Core 443 | . . 38 405 Absorbed by Shields . | . . . . Core Remaining (%) 92 | 100 . 84 . Volleys Fired 80 | . 8 9 63 Largest 2 | . 2 2 2 Hottest 112 | . 89 89 112 Shots Fired 141 | . 12 15 114 Gun 120 | . 8 9 103 Cannon . | . . . . Launcher 21 | . 4 6 11 Special . | . . . . Kinetic . | . . . . Thermal 120 | . 8 9 103 Explosive 21 | . 4 6 11 Electromagnetic . | . . . . Robot Hit Streak 13 | . 4 6 13 Robot Miss Streak 7 | . 7 2 3 Penetration Max . | . . . . Secondary Targets 1 | . . . 1 Max Gunslinging Chain 1 | . . . 1 Shots Hit Robots 92 | . 4 9 79 Core Hits 56 | . 10 10 36 Critical Kills . | . . . . Critical Parts Destroyed . | . . . . Critical Strikes 9 | . 1 1 7 Burn 9 | . 1 1 7 Melee Attacks . | . . . . Impact . | . . . . Slashing . | . . . . Piercing . | . . . . Sneak Attacks . | . . . . Combat Hostiles . | . . . . Follow-up Attacks . | . . . . Damage Inflicted 2628 | 1 208 459 1960 Guns 1172 | . 59 85 1028 Cannons . | . . . . Explosions 1440 | . 145 374 921 Melee . | . . . . Ramming 16 | 1 4 . 11 Kinetic . | . . . . Thermal 1598 | . 59 85 1454 Explosive 1014 | . 145 374 495 Electromagnetic . | . . . . Impact . | . . . . Slashing . | . . . . Piercing . | . . . . Highest Corruption . | . . . . Average Corruption . | . . . . Corruption Purged . | . . . . Corruption Blocked . | . . . . Overload Shots . | . . . . Overflow Damage 169 | . . . 169 Projectiles . | . . . . Explosions 169 | . . . 169 Melee . | . . . . Knockbacks . | . . . . Impact . | . . . . Kinetic . | . . . . Secondary . | . . . . Self-Inflicted Damage 99 | . . . 99 Shots 1 | . . . 1 Rammed 8 | 1 3 . 4 Targets Rammed 10 | 1 4 . 5 Kicked . | . . . . Crushed 2 | . 1 . 1 Highest Temperature 256 | . 77 149 256 Average Temperature 67 | . 32 69 71 Received Heat Transfer 531 | . 36 72 423 Siege Activations . | . . . . Robots Corrupted . | . . . . Combat Hostiles . | . . . . Parts Fried . | . . . . Impact Corruptions . | . . . . Robots Melted 1 | . . . 1 Combat Hostiles 1 | . . . 1 Parts Melted 13 | . . . 13 Heat Transferred 3913 | . 222 296 3395 Parts Sabotaged . | . . . . Parts Stolen . | . . . . Parts Stripped . | . . . . Power Chain Reactions . | . . . . Alert | -11 -10 -10 -9 ------- Run | Yrd Mat Min Mat Peak Influence 643 | . 109 256 643 Initial 99 | . . 44 99 Average 283 | . 20 207 397 Maximum Alert Level 2 | . . 1 2 Low Security (%) 38 | 100 100 42 17 Level 1 24 | . . 57 20 Level 2 37 | . . . 62 Level 3 . | . . . . Level 4 . | . . . . Level 5 . | . . . . High Security . | . . . . Max Security . | . . . . Squads Dispatched 2 | . . . 2 Investigation 1 | . . . 1 Extermination . | . . . . Reinforcement 1 | . . . 1 Assault . | . . . . Garrison . | . . . . Intercept . | . . . . Searches Triggered . | . . . . Construction Impeded . | . . . . Haulers Reinforced . | . . . . Active Scanning Responses . | . . . . Cargo Convoy Interrupts . | . . . . Stealth | -11 -10 -10 -9 --------- Run | Yrd Mat Min Mat Distress Signals 2 | . . . 2 Communications Jammed . | . . . . Distress Signals . | . . . . Times Spotted 34 | . 5 6 23 Peak Tracking Total 7 | . 4 3 7 Tactical Retreats 2 | . . 1 1 Traps | -11 -10 -10 -9 ------- Run | Yrd Mat Min Mat Traps Triggered 5 | . . . 5 Indirectly . | . . . . Trap Hack Attempts . | . . . . Triggered . | . . . . Disarmed . | . . . . Reprogrammed . | . . . . Reused . | . . . . Traps Extracted . | . . . . Installed . | . . . . Triggered . | . . . . Machines | -11 -10 -10 -9 ---------- Run | Yrd Mat Min Mat Machines Disabled 7 | . 1 1 5 Max in Single Turn 1 | . 1 1 1 Machines Repaired . | . . . . Machines Dismantled . | . . . . Machines Sabotaged . | . . . . Overloaded Fab Kills . | . . . . Hacking | -11 -10 -10 -9 --------- Run | Yrd Mat Min Mat Machines Accessed 2 | . . . 2 Terminals 1 | . . . 1 Fabricators . | . . . . Repair Stations . | . . . . Recycling Units 1 | . . . 1 Scanalyzers . | . . . . Garrison Access . | . . . . Total Hacks 5 | . . . 5 Successful 1 | . . . 1 Failed 4 | . . . 4 Catastrophic 2 | . . . 2 Database Lockouts . | . . . . Manual 2 | . . . 2 Terminals 2 | . . . 2 Fabricators . | . . . . Repair Stations . | . . . . Recycling Units 3 | . . . 3 Scanalyzers . | . . . . Garrison Access . | . . . . Terminal Hacks 1 | . . . 1 Branch Access Points 1 | . . . 1 Fabricator Hacks . | . . . . Repair Station Hacks . | . . . . Recycling Unit Hacks . | . . . . Scanalyzer . | . . . . Garrison Access Hacks . | . . . . Unauthorized Hacks . | . . . . Terminals . | . . . . Fabricators . | . . . . Repair Stations . | . . . . Recycling Units . | . . . . Scanalyzers . | . . . . Garrison Access . | . . . . Data Cores Recovered . | . . . . Used . | . . . . Hacking Detections 2 | . . . 2 Full Trace Events 1 | . . . 1 Feedback Events . | . . . . Feedback Blocked . | . . . . Robot Schematics Acquired . | . . . . Robots Built . | . . . . Authchips . | . . . . Time . | . . . . Total Robot Build Rating . | . . . . Part Schematics Acquired . | . . . . Parts Built . | . . . . Authchips . | . . . . Time . | . . . . Total Part Build Rating . | . . . . Parts Repaired . | . . . . Time . | . . . . Parts Recycled . | . . . . Recycled Matter . | . . . . Retrieved Matter . | . . . . Retrieved Components . | . . . . Parts Scanalyzed . | . . . . Part Schematics Acquired . | . . . . Parts Damaged . | . . . . Bothacking | -11 -10 -10 -9 ------------ Run | Yrd Mat Min Mat Used RIF Installer . | . . . . Robots Hacked . | . . . . Non-combat . | . . . . Combat . | . . . . Robot Hacks Applied . | . . . . Relay Couplers Released . | . . . . Fabnet Peak Effective % . | . . . . Robots Rewired . | . . . . Allies Hacked . | . . . . Hacks Repelled . | . . . . Allies | -11 -10 -10 -9 -------- Run | Yrd Mat Min Mat Total Allies 1 | . . 1 . Largest Group 1 | . . 1 1 Highest-Rated Group 31 | . . 31 31 Highest-Rated Ally 31 | . . 31 31 Total Orders . | . . . . Ally Attacks 7 | . . . 7 Total Damage 126 | . . . 126 Kills 1 | . . . 1 Allies Corrupted . | . . . . Allies Melted . | . . . . Intel | -11 -10 -10 -9 ------- Run | Yrd Mat Min Mat Robot Analysis Total . | . . . . Derelict Logs Recovered 1 | . . 1 . Drone Launches . | . . . . Drone Recoveries . | . . . . Exploration | -11 -10 -10 -9 ------------- Run | Yrd Mat Min Mat Turns Passed 1102 | 88 121 238 655 Spaces Moved 492 | 54 53 134 251 Core 11 | 6 . . 5 Treads 481 | 48 53 134 246 Legs . | . . . . Wheels . | . . . . Hover . | . . . . Flight . | . . . . Fastest Speed 50 | 50 160 160 160 Average Speed 159 | 147 160 160 161 Slowest Speed 250 | 160 160 160 250 Overloaded Moves . | . . . . Propulsion Burnouts . | . . . . Robots Hopped . | . . . . Cave-ins Triggered . | . . . . Exploration Rate (%) 21 | 5 16 27 39 Regions Visited 3 Branch Regions 1 Pre-discovered Areas . | . . . . Known Exits Taken . | . . . . Unknown Exits Taken 3 | 1 1 1 . Scrap Searched . | . . . . Spaces Dug . | . . . . Terrain Destroyed 162 | . 26 56 80 Melee . | . . . . Projectile . | . . . . AOE 162 | . 26 56 80 Terrain Rammed . | . . . . Walls Destroyed . | . . . . Machines Disabled . | . . . . Actions | -11 -10 -10 -9 --------- Run | Yrd Mat Min Mat Total 658 | 59 75 143 381 Wait 46 | . . 1 45 Move 490 | 53 53 133 251 Hop . | . . . . Pick Up 4 | . 4 . . Fast Attach 11 | 5 1 . 5 Attach 4 | . . . 4 Detach . | . . . . Swap 7 | . 3 . 4 Drop 7 | . 3 . 4 Fire 80 | . 8 9 63 Melee . | . . . . Ram . | . . . . Kick . | . . . . Crush 9 | 1 3 . 5 Escape Stasis . | . . . . Rewire . | . . . . Trap . | . . . . Miscellaneous . | . . . . Route ------- -11/Scrapyard -10/Materials -10/Mines -9/Materials (discovered 4 exits: *Mat x2 / *Min x2) History --------- Turn | Location | Event 4 | -11/Scrapyard | Discovered new exit (range 16) 89 | -11/Scrapyard | Entered Materials 173 | -10/Materials | Discovered new exit (range 7) 210 | -10/Materials | Entered Mines 315 | -10/Mines | Build established: Mutant 343 | -10/Mines | Learned location of 1 exit from Materials 392 | -10/Mines | Received a Mining Laser from a helpful Derelict 439 | -10/Mines | Discovered new exit (range 7) 448 | -10/Mines | Entered Materials 448 | -9/Materials | Accompanied by 1 ally 448 | -9/Materials | Evolved 2 slots: Utility x2 449 | -9/Materials | Identified exit to Materials 649 | -9/Materials | Identified exit to Mines 754 | -9/Materials | Discovered exit to Materials (range 15) 984 | -9/Materials | Core integrity fell below 50% 1085 | -9/Materials | Core integrity fell below 20% 1103 | -9/Materials | Destroyed by Y-45 Defender with Heavy Assault Rifle Last Messages --------------- Destroyed Lgt. Ion Engine. T-07 Excavator destroyed. Destroyed Wheel. R-06 Scavenger destroyed. U-05 Engineer lays Concrete. U-05 Engineer destroyed. K-01 Serf collects debris. U-05 Engineer lays Concrete. Acquired 27 matter. U-05 Engineer lays Concrete. K-01 Serf collects debris. U-05 Engineer lays Concrete. K-01 Serf collects debris. G-34 Mercenary destroyed. K-01 Serf collects debris. Critical hit (Burn: +37). K-01 Serf collects debris. U-05 Engineer builds a Wall. Acquired Heat Sink. K-01 Serf collects debris. Map ----- +----------------------------------------------------+ | ?????????????????????????????????????????????????? | | ?????????????????????????????????????????????????? | | ?????????????????????????????????????????????????? | | ?????????????????????????????????????????????????? | | ?????????????????????????????????????????????????? | | ?????????????????????????????????????????????????? | | ?????????????????????????????????????????????????? | | ?????????????????????????????????????????????????? | | ?????????????????????????????????????????????????? | | ?????????????????????????????????????????????????? | | ?????????????????????????????????????????????????? | | ?????????????????????????????????????????????????? | | ????????????????????"????????????????????????????? | | ???????????????????? ???????????????????????????? | | ??????????????????###/#??????????????????????????? | | ?????????????????? ??????????????????????????? | | ????????????? ???? ??????????????????????????? | | ???????????? """ ???????????###????????????? | | ????????????? """ ??????????? ????????????? | | ?????????????? """ ##+######## #????????????? | | ?????????????? # "T" # #????????????? | | ??????????????? ? ! # #????????????? | | ??????????????? "" ? # #????????????? | | ?????????????# "" ? # #????????????? | | ????????? # "" u Y[##;;;;;#### ###?????? #? | | ????????? !%@ # #? | | ?????????> !%= + """???? | | ????????? """ ^ = # """???? | | ??????????????? """ k%!## ##??????"???? | | ???????????????? """ * =;##%#???????????? | | ??????????????# %k;##%###?????????? | | ??????????????# # #?????????? | | ??????????????# # #?????????? | | ??????????????#### ;;;;;;; ;#[ T% +?????????? | | ?????????????????# ##### ; ## #?????????? | | ?????????????????#**==!!?????## ## #?????????? | | ?????????????????#**==!!??????# ### ##?????????? | | ?????????????????#######??????# #?# ########???? | | ??????????????????????????????# ??# /% #???? | | ??????????????????????????????? ??# %# #???? | | ??????????????????????????????? ??# # #???? | | ??????????????????????????????? ??# # #???? | | ??????????????????????????????????# # !! #???? | | ??????????????????????????????????# # ! #???? | | ??????######??????????????????????# ##########?? | | ????### # ##???????############### #? = [ ?? | | ????# #???????#] # # "T" #? | | ##### #???????# ! # # #? | | ##???????# =+% + #? | | [ #???????# [# # """ """??? | +----------------------------------------------------+ Best States ------------- Heat Dissipation 28 Energy Generation 14 Energy Capacity 280 Matter Stores 300 Matter Capacity 300 Sight Range 16 Terrain Scan Density 10 Evasion (%) 40 Recoil Reduction 2 Item Schematics ----------------- None Robot Schematics ------------------ None Fabricated ------------ Nothing Alien Tech Used ----------------- None Achievements -------------- None Challenges ------------ None Game ------ Seed CoolingImprovedRedirector Manual? 0 Play Time 00:08:13 Cumulative 75.8 hours Start 2024.08.17 @ 16:00:23 End 2024.08.17 @ 16:07:26 Sessions 1 Manual Loads 0 Difficulty Rogue Special Mode None Game No. 190 Rogue 115 Adventurer 75 Explorer 0 Win Type - Total 0 Types 0/0/0/0/0/0/0/0/0 Lore% 41 Gallery% 43 Achievement% 35 Wizard Run 0 Options --------- Layout 0 ASCII 0 Keyboard 0 Movement Mouse Keybinds 0 Fullscreen 1 Font 24/Smallcaps Map View 76x50 Zoom Use 0% Tactical HUD 0 Map Filters NONE Filters NONE Steam 1 RUN: 55fd0d60-67bb-410b-ae01-427a604b6d74